bitfinex/quotes_BTCUSD_20251217
["timestamp","ask_amount","ask_price","bid_price","bid_amount"]
[1765968316182,0.336426,86900.0,86899.0,0.10138]
[1765968316386,0.01517,86904.0,86899.0,0.03152]
[1765968317165,0.01617,86904.0,86899.0,0.03152]
[1765968317366,0.001,86904.0,86900.0,0.06986]
[1765968317886,0.001,86904.0,86899.0,0.03152]
[1765968318400,0.03393,86908.0,86899.0,0.03152]
[1765968318928,0.001,86904.0,86900.0,0.06986]
[1765968319347,0.03393,86908.0,86900.0,0.06986]
[1765968319546,0.03393,86908.0,86899.0,0.03152]
[1765968319547,0.001,86908.0,86907.0,0.03421]
[1765968320059,0.01926,86913.0,86907.0,0.03421]
[1765968320558,0.01926,86913.0,86907.0,0.03321]
[1765968321022,0.001,86908.0,86907.0,0.03321]
[1765968321161,0.04926,86913.0,86907.0,0.03321]
[1765968321623,0.05026,86913.0,86907.0,0.03321]
[1765968321821,0.04926,86913.0,86907.0,0.03321]
[1765968322057,0.05126,86913.0,86907.0,0.03321]
[1765968322264,0.001,86908.0,86907.0,0.10307]
[1765968322436,0.05126,86913.0,86907.0,0.10307]
[1765968322820,0.05226,86913.0,86907.0,0.03321]
[1765968322987,0.05026,86913.0,86907.0,0.01921]
[1765968323632,0.001,86908.0,86907.0,0.01921]
[1765968324323,0.002,86908.0,86907.0,0.01921]
[1765968324695,0.001,86908.0,86907.0,0.01921]
[1765968325536,0.001,86908.0,86902.0,0.03421]
[1765968326053,0.002,86908.0,86902.0,0.03421]
[1765968326416,0.001,86908.0,86902.0,0.03421]
[1765968326617,0.001,86908.0,86902.0,0.10407]
[1765968326850,0.002,86908.0,86902.0,0.10407]
[1765968327564,0.001,86908.0,86902.0,0.10407]
[1765968327911,0.002,86908.0,86902.0,0.10407]
[1765968329521,0.002,86908.0,86902.0,0.10568287]
[1765968331144,0.002,86908.0,86902.0,0.03582287]
[1765968331976,0.002,86908.0,86903.0,0.06986]
[1765968332133,0.002,86908.0,86907.0,0.10407]
[1765968332687,0.002,86908.0,86907.0,0.03421]
[1765968332851,0.001,86908.0,86907.0,0.03421]
[1765968333274,0.002,86908.0,86907.0,0.03421]
[1765968333791,0.001,86908.0,86907.0,0.03421]
[1765968333959,0.002,86908.0,86907.0,0.03421]
[1765968334294,0.001,86908.0,86907.0,0.10407]
[1765968334653,0.002,86908.0,86907.0,0.10407]
[1765968335667,0.002,86908.0,86907.0,0.15242287]
[1765968335886,0.002,86908.0,86907.0,0.17062287]
[1765968336848,0.001,86908.0,86907.0,0.17062287]
[1765968337043,0.001,86908.0,86907.0,0.05402287]
[1765968337044,0.00053262,86908.0,86907.0,0.05402287]
[1765968337329,0.00053262,86908.0,86907.0,0.17456287]
[1765968337632,0.0372,86918.0,86908.0,0.06979]
[1765968337900,0.0372,86918.0,86908.0,0.07140287]
[1765968338104,0.02437,86922.0,86908.0,0.07140287]
[1765968338282,0.3363785,86920.0,86908.0,0.07140287]
[1765968339316,0.3373785,86920.0,86908.0,0.07140287]
[1765968340702,0.3383785,86920.0,86908.0,0.07140287]
[1765968341098,0.23209802,86920.0,86908.0,0.07140287]
[1765968341306,0.34988333,86920.0,86908.0,0.07140287]
[1765968341505,0.00269702,86909.0,86908.0,0.12115287]
[1765968343120,0.15373702,86909.0,86908.0,0.00161287]
[1765968343592,0.08464702,86909.0,86908.0,0.00261287]
[1765968344474,0.15373702,86909.0,86908.0,0.00161287]
[1765968344674,0.08464702,86909.0,86908.0,0.00161287]
[1765968344996,0.08464702,86909.0,86900.0,15.16556865]
[1765968344997,0.01150642,86908.0,86900.0,15.16556865]
[1765968345196,0.02038,86901.0,86900.0,15.16556865]
[1765968346747,0.42282468,86901.0,86900.0,15.16656865]
[1765968346923,0.36526694,86901.0,86900.0,15.16656865]
[1765968347278,2.36526694,86901.0,86900.0,15.16656865]
[1765968347479,2.36526694,86901.0,86900.0,15.16556865]
[1765968347886,2.36526694,86901.0,86900.0,15.16656865]
[1765968348643,2.36726694,86901.0,86900.0,15.16656865]
[1765968349427,2.36726694,86901.0,86900.0,15.16556865]
[1765968349707,2.36826694,86901.0,86900.0,15.16556865]
[1765968350516,2.37071128,86901.0,86900.0,15.16556865]
[1765968351797,2.4121928,86901.0,86900.0,15.16556865]
[1765968351996,2.37071128,86901.0,86900.0,15.16556865]
[1765968352672,2.36971128,86901.0,86900.0,15.16556865]
[1765968353105,2.37171128,86901.0,86900.0,15.16556865]
[1765968353454,2.4130648,86901.0,86900.0,15.16556865]
[1765968354267,2.37171128,86901.0,86900.0,15.16556865]
[1765968355308,2.37171128,86901.0,86900.0,15.07956865]
[1765968357025,2.5407125,86901.0,86900.0,15.07956865]
[1765968357641,2.77529292,86901.0,86900.0,15.07956865]
[1765968357840,2.65389292,86901.0,86900.0,15.07956865]
[1765968358037,2.65189292,86901.0,86900.0,15.07956865]
[1765968358238,2.6105394,86901.0,86900.0,15.07956865]
[1765968358707,2.6085394,86901.0,86900.0,15.07956865]
[1765968359047,2.6115394,86901.0,86900.0,15.07956865]
[1765968359248,2.57433292,86901.0,86900.0,15.07956865]
[1765968359974,2.57733292,86901.0,86900.0,15.07956865]
[1765968362410,2.57733292,86901.0,86900.0,14.99356865]
[1765968367579,2.57733292,86901.0,86900.0,13.6718137]
[1765968367870,2.6327394,86901.0,86900.0,13.6718137]
[1765968368580,2.59553292,86901.0,86900.0,13.6718137]
[1765968368796,2.57733292,86901.0,86900.0,13.6718137]
[1765968369084,2.58953292,86901.0,86900.0,13.6718137]
[1765968369226,2.59253292,86901.0,86900.0,13.6718137]
[1765968369424,2.59353292,86901.0,86900.0,13.6718137]
[1765968369826,2.59153292,86901.0,86900.0,13.6718137]
[1765968370230,2.59153292,86901.0,86900.0,13.6568137]
[1765968370231,2.59453292,86901.0,86900.0,13.6568137]
[1765968371052,2.57633292,86901.0,86900.0,13.6568137]
[1765968371253,2.59453292,86901.0,86900.0,13.6568137]
[1765968373592,2.02877292,86901.0,86900.0,13.6568137]
[1765968375127,2.02377292,86901.0,86900.0,13.6568137]
[1765968375530,2.02477292,86901.0,86900.0,13.6568137]
[1765968375732,2.02677292,86901.0,86900.0,13.6568137]
[1765968375928,1.8577717,86901.0,86900.0,13.6568137]
[1765968377448,1.8577717,86901.0,86900.0,13.6338137]
[1765968380717,1.82315128,86901.0,86900.0,13.6338137]
[1765968384530,1.82315128,86901.0,86900.0,13.5478137]
[1765968385145,1.80495128,86901.0,86900.0,13.5478137]
[1765968385342,1.82315128,86901.0,86900.0,13.5478137]
[1765968386585,0.00544434,86901.0,86900.0,13.62074657]
[1765968387515,0.00344434,86901.0,86900.0,13.62074657]
[1765968387928,0.00344434,86901.0,86900.0,13.63994657]
[1765968387929,0.00244434,86901.0,86900.0,13.63994657]
[1765968388131,0.00244434,86901.0,86900.0,13.64194657]
[1765968388330,0.00244434,86901.0,86900.0,13.64094657]
[1765968388534,0.00244434,86901.0,86900.0,13.63894657]
[1765968388737,0.00244434,86901.0,86900.0,13.64394657]
[1765968406585,0.00244434,86901.0,86900.0,13.64094657]
[1765968406811,0.00244434,86901.0,86900.0,13.63894657]
[1765968406983,0.00244434,86901.0,86900.0,13.64194657]
[1765968407189,0.00244434,86901.0,86900.0,13.64394657]
[1765968408836,0.01150456,86922.0,86900.0,13.64394657]
[1765968408837,0.24152098,86949.0,86918.0,0.02384]
[1765968409034,0.23021467,86951.0,86944.0,0.00161287]
[1765968409035,0.00027356,86945.0,86944.0,0.00161287]
[1765968409447,0.00166334,86945.0,86944.0,0.00161287]
[1765968410264,0.00166334,86945.0,86944.0,0.02461618]
[1765968410686,0.00166334,86945.0,86944.0,0.02561618]
[1765968410896,0.00166334,86945.0,86944.0,0.02461618]
[1765968411313,0.00166334,86945.0,86944.0,0.02861618]
[1765968411772,0.00166334,86945.0,86944.0,0.00561287]
[1765968411990,0.00166334,86945.0,86944.0,0.2586493]
[1765968412190,0.00166334,86945.0,86944.0,0.58764898]
[1765968413048,0.00166334,86945.0,86944.0,0.58564898]
[1765968413365,0.00166334,86945.0,86944.0,0.60188898]
[1765968413770,0.00266334,86945.0,86944.0,0.60588898]
[1765968414914,3.34e-06,86945.0,86944.0,0.60588898]
[1765968415113,3.34e-06,86945.0,86944.0,0.61188898]
[1765968415680,0.0002,86951.0,86944.0,0.61188898]
[1765968415681,3.34e-06,86951.0,86950.0,0.52071725]
[1765968415882,3.34e-06,86951.0,86950.0,0.6377909]
[1765968415883,0.00037938,86951.0,86950.0,0.6377909]
[1765968416727,0.0002,86957.0,86956.0,0.52070138]
[1765968416932,0.0002,86966.0,86958.0,0.52069609]
[1765968417134,0.0002,86966.0,86958.0,0.52230896]
[1765968417338,0.0002,86966.0,86958.0,0.65152332]
[1765968417521,0.0002,86966.0,86965.0,0.52067757]
[1765968417737,0.0002,86966.0,86965.0,0.53283535]
[1765968420228,0.0002,86966.0,86965.0,0.30285778]
[1765968420437,0.0002,86966.0,86965.0,0.30785778]
[1765968420636,0.0002,86966.0,86965.0,0.42331856]
[1765968420839,0.0002,86966.0,86965.0,0.31551287]
[1765968421266,0.0002,86966.0,86965.0,0.29231287]
[1765968421486,0.0002,86966.0,86965.0,0.02481287]
[1765968421638,0.0002,86966.0,86965.0,0.02981287]
[1765968421988,0.0002,86966.0,86965.0,0.04196104]
[1765968422184,0.0002,86966.0,86965.0,0.02481287]
[1765968422387,0.0002,86966.0,86965.0,0.02881287]
[1765968423018,0.0002,86966.0,86965.0,0.02381287]
[1765968423169,0.0002,86966.0,86965.0,0.00561287]
[1765968423370,0.0002,86966.0,86965.0,0.02781287]
[1765968423613,0.01149597,86987.0,86965.0,0.02781287]
[1765968423614,0.22992118,86987.0,86965.0,0.02781287]
[1765968423921,0.22992118,86987.0,86970.0,0.34331919]
[1765968423922,0.01149623,86985.0,86970.0,0.34331919]
[1765968424084,0.01149649,86983.0,86971.0,0.03941296]
[1765968424281,0.00011277,86987.0,86971.0,0.03941296]
[1765968424282,0.00011277,86987.0,86972.0,0.0182]
[1765968424484,0.00011277,86987.0,86972.0,0.0411959]
[1765968424485,0.0114961,86986.0,86972.0,0.0411959]
[1765968425304,0.0114961,86986.0,86973.0,0.0182]
[1765968425971,0.00011277,86987.0,86973.0,0.0182]
[1765968426167,0.01160874,86987.0,86973.0,0.0182]
[1765968426300,0.00011277,86987.0,86974.0,0.0388128]
[1765968427088,0.01160874,86987.0,86974.0,0.0388128]
[1765968427453,0.00094702,86975.0,86974.0,0.0388128]
[1765968427636,0.00094702,86975.0,86974.0,0.0398128]
[1765968428251,0.00094702,86975.0,86974.0,0.001]
[1765968428436,0.00094702,86975.0,86974.0,0.00112]
[1765968428636,0.00094702,86975.0,86974.0,0.00312]
[1765968429265,0.00094702,86975.0,86974.0,0.00012]
[1765968429490,0.00094702,86975.0,86974.0,0.02132]
[1765968429651,0.00094702,86975.0,86974.0,0.02432]
[1765968430368,0.00094702,86975.0,86974.0,0.02593287]
[1765968431121,0.00094702,86975.0,86974.0,0.04892824]
[1765968431444,0.00094702,86975.0,86974.0,0.05497054]
[1765968435837,0.00094702,86975.0,86974.0,0.03677054]
[1765968436012,0.00094702,86975.0,86974.0,0.05497054]
[1765968436414,0.00094702,86975.0,86974.0,0.03677054]
[1765968436618,0.00094702,86975.0,86974.0,0.05497054]
[1765968436847,0.00094702,86975.0,86974.0,0.03197517]
[1765968437026,0.00094702,86975.0,86974.0,0.02593287]
[1765968437241,0.00094702,86975.0,86974.0,0.05952066]
[1765968438424,0.00094702,86975.0,86974.0,0.09033533]
[1765968438638,0.00094702,86975.0,86974.0,0.05940066]
[1765968438841,0.00094702,86975.0,86974.0,0.03652529]
[1765968439014,0.00094702,86975.0,86974.0,0.03646529]
[1765968439401,0.00094702,86975.0,86974.0,0.03652529]
[1765968439877,0.00094702,86975.0,86974.0,0.0425589]
[1765968440306,0.00094702,86975.0,86974.0,0.06755427]
[1765968440517,0.23089815,86975.0,86974.0,0.002]
[1765968440731,0.38157815,86975.0,86974.0,0.002]
[1765968440924,0.38157815,86975.0,86974.0,0.004]
[1765968441265,0.38157815,86975.0,86974.0,0.002]
[1765968441705,0.31359815,86975.0,86974.0,0.001]
[1765968441926,0.23089815,86975.0,86974.0,0.001]
[1765968442124,0.23089815,86975.0,86974.0,0.002]
[1765968443419,0.00094702,86975.0,86974.0,0.00373287]
[1765968443618,0.00094702,86975.0,86974.0,0.01438432]
[1765968444868,0.00094702,86975.0,86974.0,0.03258432]
[1765968445349,0.00094702,86975.0,86974.0,0.04122392]
[1765968445554,0.00094702,86975.0,86974.0,0.06421929]
[1765968446223,0.00094702,86975.0,86974.0,0.05557969]
[1765968447122,0.00094702,86975.0,86974.0,0.05457969]
[1765968447463,0.00094702,86975.0,86974.0,0.05757969]
[1765968447662,0.00094702,86975.0,86974.0,0.09873406]
[1765968447893,0.00094702,86975.0,86974.0,0.09773406]
[1765968448111,0.00094702,86975.0,86974.0,0.09973406]
[1765968448326,0.00094702,86975.0,86974.0,0.19383078]
[1765968448754,9.80073817,87000.0,86999.0,6e-05]
[1765968449435,9.80073817,87000.0,86992.0,0.00332]
[1765968450002,9.80073817,87000.0,86981.0,0.02299352]
[1765968450003,9.80073817,87000.0,86993.0,0.01064368]
[1765968450204,9.80073817,87000.0,86994.0,0.01064368]
[1765968450403,9.80073817,87000.0,86988.0,0.04119167]
[1765968450646,9.80073817,87000.0,86989.0,0.01064243]
[1765968450957,9.80073817,87000.0,86990.0,0.01064243]
[1765968451163,9.80073817,87000.0,86991.0,0.01064243]
[1765968451317,9.80173817,87000.0,86992.0,0.01064243]
[1765968451523,9.80173817,87000.0,86988.0,0.04119167]
[1765968451524,9.80073817,87000.0,86993.0,0.01064243]
[1765968451722,9.80073817,87000.0,86988.0,0.04119167]
[1765968451976,9.57913783,87000.0,86989.0,0.01064131]
[1765968452158,9.57813783,87000.0,86990.0,0.01064131]
[1765968452331,9.57813783,87000.0,86991.0,0.01064131]
[1765968452535,9.57913783,87000.0,86992.0,0.03363192]
[1765968452734,9.57813783,87000.0,86993.0,0.01064131]
[1765968452959,9.57813783,87000.0,86994.0,0.01064131]
[1765968453189,9.57813783,87000.0,86987.0,0.0182]
[1765968453385,9.57813783,87000.0,86988.0,0.03363158]
[1765968453585,9.57813783,87000.0,86989.0,0.01063991]
[1765968453809,9.57813783,87000.0,86990.0,0.01063991]
[1765968454071,9.57913783,87000.0,86993.0,0.001]
[1765968454253,9.57992665,87000.0,86993.0,0.001]
[1765968454454,9.57813783,87000.0,86989.0,0.0182]
[1765968454695,0.00059954,86994.0,86990.0,0.01063794]
[1765968454855,9.57813783,87000.0,86991.0,0.01063794]
[1765968455061,9.57813783,87000.0,86992.0,0.01063794]
[1765968455264,9.57813783,87000.0,86993.0,0.01063794]
[1765968455509,9.57813783,87000.0,86989.0,0.0202]
[1765968455729,9.57813783,87000.0,86990.0,0.01063718]
[1765968455927,9.57813783,87000.0,86991.0,0.01063718]
[1765968456127,9.57813783,87000.0,86992.0,0.01063718]
[1765968456429,9.57813783,87000.0,86990.0,0.002]
[1765968456604,9.57813783,87000.0,86991.0,0.01063697]
[1765968456856,9.57813783,87000.0,86992.0,0.01063697]
[1765968457049,9.57813783,87000.0,86981.0,0.02299352]
[1765968457342,9.57813783,87000.0,86992.0,0.002]
[1765968457526,9.57813783,87000.0,86992.0,0.001]
[1765968457867,9.57813783,87000.0,86983.0,0.02299299]
[1765968458025,9.57813783,87000.0,86984.0,0.0106366]
[1765968458213,9.57813783,87000.0,86985.0,0.0106366]
[1765968458469,9.57813783,87000.0,86986.0,0.0288366]
[1765968458610,9.57813783,87000.0,86987.0,0.0106366]
[1765968458815,9.57813783,87000.0,86983.0,0.02299299]
[1765968458816,0.01149478,86996.0,86988.0,0.0106366]
[1765968459037,0.01149491,86995.0,86984.0,0.0182]
[1765968459326,0.24139042,86996.0,86984.0,0.00011277]
[1765968459528,0.24139618,86994.0,86984.0,0.00011277]
[1765968459734,0.01149464,86997.0,86984.0,0.00011277]
[1765968459935,0.01149517,86993.0,86984.0,0.00011277]
[1765968460144,0.00050489,86991.0,86984.0,0.00011277]
[1765968460339,0.24139803,86994.0,86984.0,0.00011277]
[1765968460754,0.01149491,86995.0,86984.0,0.00111277]
[1765968460953,0.24139334,86995.0,86984.0,0.00111277]
[1765968461149,0.01149491,86995.0,86984.0,0.00111277]
[1765968461373,0.2413938,86995.0,86984.0,0.00111277]
[1765968461790,0.01149491,86995.0,86984.0,0.00111277]
[1765968462169,0.24139534,86996.0,86984.0,0.00111277]
[1765968462375,0.24139339,86995.0,86984.0,0.00111277]
[1765968462757,0.24139339,86995.0,86984.0,0.00011277]
[1765968462952,0.01149504,86994.0,86984.0,0.00011277]
[1765968463227,0.0114953,86992.0,86984.0,0.00011277]
[1765968463452,0.22992469,86985.0,86984.0,0.00011277]
[1765968463651,0.34632469,86985.0,86984.0,0.00011277]
[1765968463993,0.34632469,86985.0,86984.0,0.00111277]
[1765968464468,0.24142038,86987.0,86984.0,0.00111277]
[1765968464578,0.24142038,86987.0,86984.0,0.00211277]
[1765968464986,0.24142038,86987.0,86984.0,0.00111277]
[1765968465653,0.00031558,86985.0,86984.0,0.00111277]
[1765968466139,0.00031558,86985.0,86984.0,0.00311277]
[1765968466761,0.34762557,86990.0,86989.0,12.83474324]
[1765968466938,0.64850705,86990.0,86989.0,12.83474324]
[1765968467974,0.64850705,86990.0,86989.0,12.83574324]
[1765968468663,1.89640144,86990.0,86989.0,12.82427324]
[1765968468996,1.89640144,86990.0,86989.0,12.82527324]
[1765968469209,1.48334644,86990.0,86989.0,12.82527324]
[1765968469413,1.43222744,86990.0,86989.0,12.82427324]
[1765968469611,1.32931244,86990.0,86989.0,12.82427324]
[1765968469958,1.33031244,86990.0,86989.0,12.82427324]
[1765968470492,0.74055544,86990.0,86989.0,12.82327324]
[1765968470715,0.74255544,86990.0,86989.0,12.82327324]
[1765968471535,0.81152544,86990.0,86989.0,12.73727324]
[1765968471701,0.81052544,86990.0,86989.0,12.73727324]
[1765968471926,0.81152544,86990.0,86989.0,12.73727324]
[1765968472953,0.86908318,86990.0,86989.0,12.73727324]
[1765968473154,0.81152544,86990.0,86989.0,12.73727324]
[1765968474167,0.81052544,86990.0,86989.0,12.73727324]
[1765968474369,0.81352544,86990.0,86989.0,12.73727324]
[1765968474985,0.81452544,86990.0,86989.0,12.73727324]
[1765968475631,0.81352544,86990.0,86989.0,12.73727324]
[1765968475808,0.81552544,86990.0,86989.0,12.73727324]
[1765968477565,0.85010536,86990.0,86989.0,12.73727324]
[1765968478222,0.85010536,86990.0,86989.0,12.73727324]
[1765968478786,0.85010536,86990.0,86989.0,12.72227324]
[1765968480450,0.81552544,86990.0,86989.0,12.72227324]
[1765968480621,0.65350705,86990.0,86989.0,12.72227324]
[1765968480981,0.005,86990.0,86989.0,12.72227324]
[1765968481120,0.003,86990.0,86989.0,12.72227324]
[1765968481321,0.0299476,86993.0,86989.0,12.72227324]
[1765968481322,0.05001839,86992.0,86989.0,12.72227324]
[1765968481522,0.002,86990.0,86989.0,12.72227324]
[1765968481919,0.34471839,86990.0,86989.0,12.72227324]
[1765968482119,0.05201839,86990.0,86989.0,12.72227324]
[1765968483130,0.28192987,86990.0,86989.0,12.72227324]
[1765968483352,0.05001839,86990.0,86989.0,12.72227324]
[1765968486233,0.05001839,86990.0,86989.0,12.71027324]
[1765968487044,0.00025243,86993.0,86989.0,12.71027324]
[1765968487666,0.00025243,86993.0,86989.0,12.71188611]
[1765968488292,0.00125243,86993.0,86989.0,12.71188611]
[1765968488492,0.00225243,86993.0,86989.0,12.79210458]
[1765968488948,0.00225243,86993.0,86990.0,0.02299114]
[1765968489928,0.00125243,86993.0,86990.0,0.02299114]
[1765968490126,0.00125243,86993.0,86989.0,12.71188611]
[1765968490322,0.00225243,86993.0,86989.0,12.71188611]
[1765968490645,0.07342243,86993.0,86989.0,12.71188611]
[1765968491050,0.07242243,86993.0,86989.0,12.71188611]
[1765968491346,0.07442243,86993.0,86989.0,12.71188611]
[1765968491744,0.03412,86990.0,86989.0,12.71188611]
[1765968492044,0.39699,86990.0,86989.0,12.71188611]
[1765968492550,0.44439,86990.0,86989.0,12.71188611]
[1765968492757,0.37222,86990.0,86989.0,12.71188611]
[1765968493174,0.00125243,86993.0,86989.0,12.70588611]
[1765968493402,0.00025243,86993.0,86990.0,0.02299114]
[1765968493605,0.00025243,86993.0,86990.0,0.02460401]
[1765968494516,0.00125243,86993.0,86990.0,0.02460401]
[1765968494756,0.00225243,86993.0,86990.0,0.02460401]
[1765968495148,0.00125243,86993.0,86990.0,0.02460401]
[1765968495357,0.00025243,86993.0,86990.0,0.02460401]
[1765968495561,0.00025243,86993.0,86990.0,0.02560401]
[1765968496097,0.00025243,86993.0,86990.0,0.00261287]
[1765968496513,0.00025243,86993.0,86990.0,0.00361287]
[1765968514258,0.00025243,86993.0,86991.0,0.0182]
[1765968514702,0.00025243,86993.0,86990.0,0.00361287]
[1765968514875,0.12069,86991.0,86990.0,0.002]
[1765968515363,0.12069,86991.0,86990.0,0.001]
[1765968515559,0.64129884,86991.0,86990.0,0.001]
[1765968515768,0.35060148,86990.0,86989.0,12.70427324]
[1765968515937,2.12831587,86990.0,86989.0,12.70427324]
[1765968516242,2.12831587,86990.0,86989.0,12.62927324]
[1765968517222,2.12931587,86990.0,86989.0,12.62927324]
[1765968517468,2.13131587,86990.0,86989.0,12.62927324]
[1765968517670,2.12931587,86990.0,86989.0,12.62927324]
[1765968518104,2.13231587,86990.0,86989.0,12.62927324]
[1765968518301,2.13131587,86990.0,86989.0,12.62927324]
[1765968518708,2.13431587,86990.0,86989.0,12.62927324]
[1765968519254,0.82003187,86990.0,86989.0,12.62927324]
[1765968520202,0.81403187,86990.0,86989.0,12.62927324]
[1765968520409,0.81403187,86990.0,86989.0,12.54327324]
[1765968520605,0.81603187,86990.0,86989.0,12.54327324]
[1765968521500,0.81803187,86990.0,86989.0,12.54327324]
[1765968522309,0.81603187,86990.0,86989.0,12.54327324]
[1765968522513,0.81703187,86990.0,86989.0,12.54327324]
[1765968522756,0.79329387,86990.0,86989.0,12.54327324]
[1765968523127,0.79429387,86990.0,86989.0,12.54327324]
[1765968524290,0.47992248,86990.0,86989.0,12.54327324]
[1765968524461,0.77062248,86990.0,86989.0,12.54327324]
[1765968524661,0.82064087,86990.0,86989.0,12.54327324]
[1765968525097,0.81964087,86990.0,86989.0,12.54327324]
[1765968525299,0.82064087,86990.0,86989.0,12.54327324]
[1765968525680,0.81964087,86990.0,86989.0,12.54327324]
[1765968526066,0.82064087,86990.0,86989.0,12.54327324]
[1765968527385,0.82064087,86990.0,86989.0,12.45727324]
[1765968531217,0.64487081,86990.0,86989.0,12.45727324]
[1765968531627,0.38813839,86990.0,86989.0,12.45727324]
[1765968531850,0.33812,86990.0,86989.0,12.45727324]
[1765968532857,0.33812,86990.0,86989.0,12.45888611]
[1765968532858,0.002,86990.0,86989.0,12.45888611]
[1765968533503,0.002,86990.0,86989.0,12.53018611]
[1765968533764,0.002,86990.0,86989.0,12.45888611]
[1765968534210,0.001,86990.0,86989.0,12.45888611]
[1765968534594,0.001,86990.0,86989.0,12.45988611]
[1765968534794,0.41146,86990.0,86989.0,12.45988611]
[1765968535173,0.41046,86990.0,86989.0,12.45988611]
[1765968537047,0.64037148,86990.0,86989.0,12.45988611]
[1765968537600,0.41046,86990.0,86989.0,12.45988611]
[1765968537800,0.64037148,86990.0,86989.0,12.45888611]
[1765968538099,0.41046,86990.0,86989.0,12.45888611]
[1765968539385,0.41146,86990.0,86989.0,12.45888611]
[1765968540769,0.64137148,86990.0,86989.0,12.45888611]
[1765968541625,0.64037148,86990.0,86989.0,12.45888611]
[1765968541997,0.69792922,86990.0,86989.0,12.45727324]
[1765968542198,0.94508987,86990.0,86989.0,12.45727324]
[1765968543585,0.94608987,86990.0,86989.0,12.45727324]
[1765968544598,0.94608987,86990.0,86989.0,12.37127324]
[1765968545549,0.94508987,86990.0,86989.0,12.37127324]
[1765968545850,0.94708987,86990.0,86989.0,12.37127324]
[1765968546872,0.94908987,86990.0,86989.0,12.37127324]
[1765968547304,0.94708987,86990.0,86989.0,12.37127324]
[1765968547731,0.94908987,86990.0,86989.0,12.37127324]
[1765968551699,0.94908987,86990.0,86989.0,12.28527324]
[1765968555249,0.94908987,86990.0,86989.0,11.75147565]
[1765968555250,1.11809109,86990.0,86989.0,11.75147565]
[1765968555400,1.1499664,86990.0,86989.0,11.75147565]
[1765968555599,1.1499664,86990.0,86989.0,11.71114366]
[1765968556000,1.1479664,86990.0,86989.0,11.71114366]
[1765968556222,1.1835513,86990.0,86989.0,11.71114366]
[1765968556427,1.1855513,86990.0,86989.0,11.71114366]
[1765968557056,1.2133653,86990.0,86989.0,11.11959023]
[1765968557204,1.2173653,86990.0,86989.0,11.11959023]
[1765968557405,1.2143653,86990.0,86989.0,11.11959023]
[1765968557957,1.3357653,86990.0,86989.0,11.11959023]
[1765968558172,1.3317653,86990.0,86989.0,10.36250571]
[1765968558371,1.3357653,86990.0,86989.0,10.18682227]
[1765968558528,1.3357653,86990.0,86989.0,9.34195321]
[1765968558731,1.3357653,86990.0,86989.0,9.22137762]
[1765968558941,1.3357653,86990.0,86989.0,9.14646384]
[1765968559146,1.3317653,86990.0,86989.0,9.07731266]
[1765968559450,1.3357653,86990.0,86989.0,8.23243548]
[1765968559916,1.3387653,86990.0,86989.0,8.23243548]
[1765968560142,1.3387653,86990.0,86989.0,7.59588832]
[1765968560342,1.3357653,86990.0,86989.0,6.37071081]
[1765968560551,1.3357653,86990.0,86989.0,2.49167808]
[1765968560820,1.3397653,86990.0,86989.0,1.20366687]
[1765968561037,1.3397653,86990.0,86989.0,0.89355532]
[1765968561259,1.3397653,86990.0,86989.0,0.68694754]
[1765968561481,1.3397653,86990.0,86989.0,0.53697017]
[1765968561718,1.3397653,86990.0,86953.0,0.00149404]
[1765968561719,0.72164506,86954.0,86953.0,0.00149404]
[1765968561893,2.14269006,86954.0,86953.0,0.00149404]
[1765968562896,2.14269006,86954.0,86953.0,0.00249404]
[1765968563615,2.14269006,86954.0,86953.0,0.00149404]
[1765968563784,2.14369006,86954.0,86953.0,0.00149404]
[1765968564183,2.14369006,86954.0,86953.0,0.00349404]
[1765968564384,2.14369006,86954.0,86953.0,0.00149404]
[1765968565232,1.97066024,86954.0,86953.0,0.00149404]
[1765968565936,0.2907,86935.0,86921.0,0.09395404]
[1765968566177,0.2907,86935.0,86921.0,0.09556691]
[1765968566607,0.2907,86935.0,86934.0,0.00060006]
[1765968567075,0.2907,86939.0,86934.0,0.00060006]
[1765968567221,0.2907,86935.0,86921.0,0.09756691]
[1765968567433,1.693545,86929.0,86921.0,0.005]
[1765968567643,0.2907,86927.0,86921.0,0.002]
[1765968567951,0.2907,86925.0,86921.0,0.002]
[1765968568146,0.2907,86923.0,86921.0,0.002]
[1765968568393,0.01150364,86929.0,86921.0,0.002]
[1765968568394,1.693545,86922.0,86921.0,0.002]
[1765968568545,1.693545,86922.0,86902.0,0.0004]
[1765968568546,1.402845,86918.0,86902.0,0.0004]
[1765968568752,0.2907,86915.0,86902.0,0.0004]
[1765968569019,0.2907,86915.0,86914.0,0.00123201]
[1765968569322,1.010323,86915.0,86914.0,0.00123201]
[1765968569480,0.870823,86915.0,86914.0,0.00123201]
[1765968570611,0.870823,86915.0,86914.0,0.00523201]
[1765968570932,0.871823,86915.0,86914.0,0.00523201]
[1765968572700,0.001,86915.0,86914.0,0.12508488]
[1765968573774,0.001,86915.0,86914.0,0.14809613]
[1765968576282,0.05773905,86949.0,86915.0,0.04861]
[1765968576481,0.108841,86948.0,86941.0,0.07371]
[1765968576691,0.05773905,86949.0,86941.0,0.07371]
[1765968576887,0.34843905,86949.0,86941.0,0.07371]
[1765968577499,0.05873905,86949.0,86942.0,0.02300384]
[1765968577679,0.05773905,86949.0,86943.0,0.0703]
[1765968577904,0.34843905,86949.0,86943.0,0.0703]
[1765968578121,0.05873905,86949.0,86946.0,0.0458]
[1765968578571,0.05773905,86949.0,86946.0,0.0458]
[1765968578918,0.16521405,86949.0,86948.0,0.0458]
[1765968579143,0.05773905,86949.0,86948.0,0.0458]
[1765968580143,0.05773905,86949.0,86948.0,0.1161]
[1765968580875,0.05873905,86949.0,86948.0,0.1201]
[1765968581079,2.34943905,86949.0,86948.0,0.004]
[1765968581484,1.87566605,86949.0,86948.0,0.004]
[1765968581666,1.87566605,86949.0,86948.0,0.007]
[1765968582041,1.87566605,86949.0,86945.0,0.00025261]
[1765968582042,2.2907,86946.0,86945.0,0.00025261]
[1765968582163,2.52072783,86946.0,86945.0,0.00025261]
[1765968582360,2.2907,86946.0,86945.0,0.00025261]
[1765968584284,1.864289,86946.0,86945.0,0.00125261]
[1765968584483,1.864289,86946.0,86945.0,0.00025261]
[1765968584881,1.864289,86946.0,86945.0,0.00225261]
[1765968585243,0.2907,86943.0,86934.0,0.05655261]
[1765968585490,0.2907,86939.0,86934.0,0.05692865]
[1765968585877,0.2907,86939.0,86934.0,0.00037604]
[1765968586303,0.2907,86939.0,86934.0,0.00137604]
[1765968587201,0.2907,86939.0,86934.0,0.00337604]
[1765968587422,0.2907,86939.0,86923.0,0.0533989]
[1765968587423,0.2907,86929.0,86923.0,0.03608]